[Event "25th Troya Open 2017"]
[Site "Canakkale"]
[Date "2017.08.09"]
[Round "5.5"]
[White "Aliyev, Elnur"]
[Black "Unlu, Alp Bugra"]
[Result "1-0"]
[ECO "A15"]
[WhiteElo "2150"]
[BlackElo "1868"]
[Annotator "RC"]
[PlyCount "113"]
[EventCountry "TUR"]
[SourceTitle "playchess.com"]
[Source "ChessBase"]
[SourceQuality "1"]
[TimeControl "5400+30"]

1. Nf3 {[%emt 0:00:30]} Nf6 {[%emt 0:01:00]} 2. g3 {[%emt 0:00:30]} g6 {[%emt 0:00:30]} 3. b3 {[%emt 0:00:30]} Bg7 {[%emt 0:00:30]} 4. Bb2 {[%emt 0:00:30]} b6 {[%emt 0:00:30]} 5. Bg2 {[%emt 0:00:30]} Bb7 {[%emt 0:00:30]} 6. O-O {[%emt 0:00:30]} d6 {[%emt 0:00:00]} 7. d4 {[%emt 0:00:30]} O-O {[%emt 0:00:00]} 8. c4 {[%emt 0:00:00]} Nbd7 {[%emt 0:00:30]} 9. Qc2 {[%emt 0:02:00]} Re8 {[%emt 0:03:30]} 10. d5 {[%emt 0:03:30]} e6 {[%emt 0:02:30]} 11. dxe6 {[%emt 0:00:30]} fxe6 {[%emt 0:00:30]} 12. Nc3 {[%emt 0:03:30]} Ng4 {[%emt 0:12:30]} 13. Bh3 {[%emt 0:07:30]} Nde5 {[%emt 0:10:30]} 14. Nxe5 {[%emt 0:02:30]} Nxe5 {[%emt 0:00:00]} 15. Nb5 {[%emt 0:10:30]} Qd7 {[%emt 0:05:00]} 16. Rad1 {[%emt 0:05:30]} a6 {[%emt 0:05:30]} 17. Nc3 {[%emt 0:07:30]} Qf7 {[%emt 0:08:30]} 18. f4 {[%emt 0:02:30]} Nd7 {[%emt 0:01:30]} 19. e3 {[%emt 0:13:30]} Rad8 {[%emt 0:14:30]} 20. Bg2 {[%emt 0:00:30]} Bxg2 {[%emt 0:00:30]} 21. Qxg2 {[%emt 0:00:30]} Nf6 {[%emt 0:00:30]} 22. e4 {[%emt 0:00:30]} Qe7 {[%emt 0:00:30]} 23. Qe2 {[%emt 0:00:30]} e5 {[%emt 0:00:30]} 24. f5 {[%emt 0:00:30]} g5 {[%emt 0:01:30]} 25. Qd2 {[%emt 0:01:30]} h6 {[%emt 0:00:30]} 26. Nd5 {[%emt 0:00:30]} Qf7 {[%emt 0:00:30]} 27. Nxf6+ {[%emt 0:00:30]} Bxf6 {[%emt 0:00:30]} 28. Qd5 {[%emt 0:00:30]} Kg7 {[%emt 0:01:30]} 29. a4 {[%emt 0:06:30]} a5 {[%emt 0:01:30]} 30. Bc3 {[%emt 0:00:30]} Qd7 {[%emt 0:00:30]} 31. Rf3 {[%emt 0:00:30]} Ra8 {[%emt 0:09:30]} 32. Rfd3 {[%emt 0:01:30]} Rab8 {[%emt 0:01:42]} 33. Be1 {[%emt 0:00:30]} Red8 {[%emt 0:01:49]} 34. Bf2 {[%emt 0:01:30]} Qe8 {[%emt 0:00:21]} 35. R3d2 {[%emt 0:03:30]} Kf8 {[%emt 0:02:34]} 36. Be3 {[%emt 0:01:30]} Qf7 {[%emt 0:00:43]} 37. Kf2 {[%emt 0:02:30]} Qxd5 {[%emt 0:02:00]} 38. cxd5 {[%emt 0:00:00]} Ke7 {[%emt 0:00:10]} 39. Rc2 {[%emt 0:00:00]} Kd7 {[%emt 0:00:20]} 40. Rdc1 {[%emt 0:00:30]} Rdc8 {[%emt 0:00:22]} 41. Bd2 {[%emt 0:00:30]} Ra8 {[%emt 0:00:44]} 42. Ke2 {[%emt 0:00:30]} Ra7 {[%emt 0:00:30]} 43. Kd3 {[%emt 0:00:30]} h5 {[%emt 0:00:30]} 44. Kc4 {[%emt 0:01:30]} Raa8 {[%emt 0:05:07]} 45. Kb5 {[%emt 0:00:00]} Ra7 {[%emt 0:00:03]} 46. Be3 {[%emt 0:04:00]} Raa8 {[%emt 0:00:45]} 47. h4 {[%emt 0:00:26]} gxh4 {[%emt 0:01:12]} 48. gxh4 {[%emt 0:00:01]} Bxh4 {[%emt 0:00:49]} 49. Rh1 {[%emt 0:00:32]} Bf6 {[%emt 0:00:06]} 50. Rxh5 {[%emt 0:00:50]} Rh8 {[%emt 0:00:01]} 51. Rch2 {[%emt 0:00:38]} Rxh5 {[%emt 0:00:36]} 52. Rxh5 {[%emt 0:00:03]} Rg8 {[%emt 0:02:12]} 53. Rh7+ {[%emt 0:00:15]} Kc8 {[%emt 0:00:41]} 54. Kc6 {[%emt 0:05:56]} Bd8 {[%emt 0:00:38]} 55. f6 {[%emt 0:00:05]} Rg3 {[%emt 0:05:25]} 56. f7 {[%emt 0:00:24]} Rf3 {[%emt 0:00:43]} 57. Rh8 {[%emt 0:00:20]} 1-0

[Event "25th Troya Open 2017"]
[Site "Canakkale"]
[Date "2017.08.09"]
[Round "5.6"]
[White "Kuruz, Yusuf"]
[Black "Alaz, Ahmet Efekan"]
[Result "1/2-1/2"]
[ECO "B07"]
[WhiteElo "1903"]
[BlackElo "2048"]
[Annotator "NA RC"]
[PlyCount "35"]
[EventCountry "TUR"]
[SourceTitle "playchess.com"]
[Source "ChessBase"]
[SourceQuality "1"]
[TimeControl "5400+30"]

1. e4 {[%emt 0:00:30]} d6 {[%emt 0:01:00]} 2. Nc3 {[%emt 0:02:30]} Nf6 {[%emt 0:01:30]} 3. Nf3 {[%emt 0:02:30]} Nbd7 {[%emt 0:00:00]} 4. Bc4 {[%emt 0:03:30]} h6 {[%emt 0:01:00]} 5. d3 {[%emt 0:01:30]} e5 {[%emt 0:00:30]} 6. h3 {[%emt 0:07:30]} Be7 {[%emt 0:00:30]} 7. Be3 {[%emt 0:01:30]} c6 {[%emt 0:00:30]} 8. a4 {[%emt 0:04:30]} a5 {[%emt 0:01:30]} 9. O-O {[%emt 0:08:30]} Nf8 {[%emt 0:02:30]} 10. d4 {[%emt 0:02:30]} Qc7 {[%emt 0:00:00]} 11. Bb3 {[%emt 0:15:30]} g5 {[%emt 0:01:00]} 12. dxe5 {[%emt 0:00:30]} dxe5 {[%emt 0:00:30]} 13. Nd2 {[%emt 0:09:30]} Ng6 {[%emt 0:25:30]} 14. Nc4 $14 {[%emt 0:16:30]} Be6 {[%emt 0:18:30]} 15. Bb6 {[%emt 0:00:30]} Qc8 {[%emt 0:00:30]} 16. Nd6+ {[%emt 0:00:40]} Bxd6 {[%emt 0:00:30]} 17. Qxd6 {[%emt 0:00:30]} Bxb3 {[%emt 0:00:30]} 18. cxb3 {[%emt 0:00:30]} 1/2-1/2

[Event "25th Troya Open 2017"]
[Site "Canakkale"]
[Date "2017.08.09"]
[Round "5.7"]
[White "Maden, Mirac Kerem"]
[Black "Yerden, Huseyin Eren"]
[Result "0-1"]
[ECO "E15"]
[WhiteElo "2014"]
[BlackElo "1816"]
[Annotator "NA RC"]
[PlyCount "164"]
[EventCountry "TUR"]
[SourceTitle "playchess.com"]
[Source "ChessBase"]
[SourceQuality "1"]
[TimeControl "5400+30"]

{[%evp 21,157,-33,29,0,9,5,33,-18,24,-27,32767,32767,32767,-22,0,-95,116,32767,242,278,257,181,254,182,202,0,32767,32767,32767,32767,32767,32767,32767,32767,32767,32767,32767,-97,-104,-142,-103,-197,-147,-192,-225,-216,-228,-479,32767,32767,32767,-532,32767,32767,32767,32767,32767,32767,32767,-345,-263,-231,-68,-326,-149,-141,-39,-34,-30,32767,32767,32767,32767,32767,-8,32767,32767,32767,32767,32767,0,0,0,0,32767,32767,32767,32767,0,-8,-8,-10,-6,-5,0,32767,32767,32767,32767,32767,32767,32767,32767,32767,32767,32767,32767,32767,32767,-20,0,-20,-32,-29,-2,-23,-7,0,0,-22,-13,-124,-89,-158,32767,32767,32767,32767,-179,-238,-234,-329,-323,32767,32767,32767,32767,-347]} 1. d4 {[%emt 0:00:30]} Nf6 {[%emt 0:01:00]} 2. Nf3 {[%emt 0:00:30]} e6 {[%emt 0:00:30]} 3. c4 {[%emt 0:00:30]} b6 {[%emt 0:00:30]} 4. g3 {[%emt 0:01:30]} Ba6 {[%emt 0:00:30]} 5. Qa4 {[%emt 0:00:30]} Bb7 {[%emt 0:01:30]} 6. Bg2 {[%emt 0:00:30]} c5 {[%emt 0:00:30]} 7. e3 {[%emt 0:01:30]} Be7 {[%emt 0:02:30]} 8. O-O {[%emt 0:00:30]} O-O {[%emt 0:00:00]} 9. Rd1 {[%emt 0:01:30]} d5 {[%emt 0:05:00]} 10. Ne5 {[%emt 0:08:30]} Qc7 {[%emt 0:03:30]} 11. Nc3 {[%emt 0:08:30]} a6 {[%emt 0:11:30]} 12. cxd5 {[%emt 0:01:30]} exd5 {[%emt 0:02:30]} (12... b5 $5 {[%cal Rb5a4]} 13. Qb3 exd5 $11) 13. Qc2 {[%emt 0:15:30]} b5 {[%emt 0:09:30]} 14. Qf5 {[%emt 0:11:30]} b4 {[%emt 0:10:30]} 15. Ne2 {[%emt 0:04:30]} c4 {[%emt 0:01:30]} 16. Nf4 {[%emt 0:04:30]} g6 {[%emt 0:10:30]} 17. Qh3 {[%emt 0:07:30]} Rd8 {[%emt 0:07:30]} 18. e4 {[%emt 0:05:30] [#]} (18. Bd2 $11) 18... dxe4 $2 {[%emt 0:08:30] [#]} (18... Bc8 $1 $17 {[%cal Rc8h3] and life is bright.} 19. Qh6 dxe4 20. Nfxg6 fxg6 21. Nxg6 Bd6) 19. Ne6 $1 {[%emt 0:00:30]} fxe6 {[%emt 0:09:13]} (19... Qxe5 $16 {was worth a try.} 20. Nxd8 Qd5) 20. Qxe6+ {[%emt 0:00:30]} Kg7 {[%emt 0:00:10] [#]} 21. Qf7+ $1 {[%emt 0:02:30]} Kh8 {[%emt 0:00:52]} 22. Bh6 {[%emt 0:02:30]} Ne8 {[%emt 0:07:41] [#]} 23. Bh3 $2 {[%emt 0:03:49]} (23. Bg5 $1 $18 {[%cal Rg5e7][%mdl 512]} Nc6 (23... Bxg5 24. Qf8#) 24. Nxc6 Bxc6 25. Bxe7) 23... Bd5 {[%emt 0:02:44]} 24. Be6 {[%emt 0:00:41]} Bxe6 {[%emt 0:00:06]} 25. Qxe6 {[%emt 0:00:05]} Nd6 {[%emt 0:00:11]} 26. Nxg6+ {[%emt 0:00:36]} hxg6 {[%emt 0:00:30]} 27. Qe5+ {[%emt 0:00:30]} Bf6 {[%emt 0:00:30]} 28. Qxf6+ {[%emt 0:00:30]} Kh7 {[%emt 0:00:05]} 29. Bf4 {[%emt 0:04:11] [#]} Nc6 $1 {[%emt 0:01:36]} 30. Qh4+ {[%emt 0:00:26]} Kg8 {[%emt 0:00:34]} 31. d5 {[%emt 0:00:25] [#]} (31. Qg5 $17 {is a better defense.}) 31... Na5 $1 {[%emt 0:00:22]} 32. Be5 {[%emt 0:01:33]} Qh7 {[%emt 0:00:58]} 33. Qf6 {[%emt 0:00:02] [#]} Nab7 $1 {[%emt 0:00:43]} 34. f3 $2 {[%emt 0:02:51]} (34. Qe6+ Kf8 35. a3) 34... Rf8 {[%emt 0:03:00]} 35. Qe6+ {[%emt 0:00:06]} Nf7 {[%emt 0:00:00]} 36. Bf4 {[%emt 0:02:12]} exf3 {[%emt 0:00:20]} 37. d6 {[%emt 0:01:07]} Nc5 {[%emt 0:01:03]} 38. Qxc4 {[%emt 0:00:34]} Qh3 {[%emt 0:00:23]} 39. Rd2 {[%emt 0:03:02]} Ne6 {[%emt 0:00:20]} 40. Rf1 {[%emt 0:02:09]} Nxf4 {[%emt 0:00:15]} 41. Qxf4 {[%emt 0:00:13]} Qf5 $2 {[%emt 0:00:50]} (41... Rad8 $19 42. Qxf3 Nxd6) 42. Rxf3 $2 {[%emt 0:01:34] [#]} (42. Qxf5 $15 gxf5 43. d7) 42... Qxf4 {[%emt 0:00:34]} (42... Ne5 $1 $19 {[%cal Re5f3] has better winning chances.} 43. Qxf5 Nxf3+ 44. Qxf3 Rxf3) 43. Rxf4 {[%emt 0:00:01]} Rad8 {[%emt 0:00:20]} (43... Ne5 $17 44. Rdf2 Rxf4 45. Rxf4 Rd8 46. Rxb4 Rxd6) 44. Rxb4 {[%emt 0:00:23]} a5 {[%emt 0:00:53]} 45. Rb5 {[%emt 0:00:56]} Rxd6 {[%emt 0:00:47]} 46. Rxd6 {[%emt 0:00:30]} Nxd6 {[%emt 0:00:30]} 47. Rxa5 {[%emt 0:00:04]} Nc4 {[%emt 0:00:00]} 48. Rb5 {[%emt 0:00:36]} Ne3 {[%emt 0:00:00]} 49. h4 {[%emt 0:00:15]} Rf1+ {[%emt 0:00:23]} 50. Kh2 {[%emt 0:00:01]} Rf2+ {[%emt 0:00:33]} 51. Kh3 {[%emt 0:00:01]} Rf1 {[%emt 0:00:30]} 52. g4 {[%emt 0:00:37]} Rf3+ {[%emt 0:00:57]} 53. Kh2 {[%emt 0:00:01]} Nxg4+ {[%emt 0:00:06]} 54. Kg2 {[%emt 0:00:01]} Rf6 {[%emt 0:01:01]} 55. a4 {[%emt 0:00:28]} Ne3+ {[%emt 0:00:12]} 56. Kg3 {[%emt 0:00:12]} Nf5+ {[%emt 0:00:21]} 57. Kg4 {[%emt 0:00:22]} Nd4 {[%emt 0:00:52]} 58. Kg5 {[%emt 0:01:19]} Ra6 {[%emt 0:00:44]} 59. Rb8+ {[%emt 0:00:10]} Kg7 {[%emt 0:00:38]} 60. Rb7+ {[%emt 0:00:03]} Kf8 {[%emt 0:00:00]} 61. Rb4 {[%emt 0:00:50]} Nf3+ {[%emt 0:00:14]} 62. Kg4 {[%emt 0:00:57]} Ne5+ {[%emt 0:00:18]} 63. Kg3 {[%emt 0:00:18]} Kg7 {[%emt 0:00:23]} 64. b3 {[%emt 0:00:17]} Kh6 {[%emt 0:00:36]} 65. Rb5 {[%emt 0:00:26]} Nc6 {[%emt 0:00:13]} 66. Kf4 {[%emt 0:01:10]} Nd4 {[%emt 0:00:58]} 67. Rb4 {[%emt 0:00:02]} Nf5 {[%emt 0:00:16]} 68. Kg4 {[%emt 0:00:40]} Rf6 {[%emt 0:00:25]} 69. Re4 {[%emt 0:01:28]} Nd6 {[%emt 0:00:29]} 70. Re5 {[%emt 0:00:04]} (70. Rf4 $5 {[%cal Rf4f6]} Nf5 71. a5 $11) 70... Rf1 {[%emt 0:00:17]} 71. Rd5 {[%emt 0:00:38]} (71. a5 $11) 71... Nf5 {[%emt 0:00:10]} 72. Rb5 {[%emt 0:02:03]} Rh1 {[%emt 0:00:31]} 73. Rb8 {[%emt 0:00:24]} Rxh4+ {[%emt 0:00:07]} 74. Kf3 {[%emt 0:00:01] [#]} Nd4+ $1 {[%emt 0:00:34]} 75. Kg3 {[%emt 0:00:22]} Re4 {[%emt 0:00:46]} 76. Kf2 $19 {[%emt 0:02:14]} Re2+ {[%emt 0:00:13]} 77. Kf1 {[%emt 0:00:12]} Ra2 {[%emt 0:00:29]} 78. Rb4 {[%emt 0:00:30]} Nc2 {[%emt 0:00:04]} 79. Rb5 {[%emt 0:00:21]} Ra3 {[%emt 0:00:41]} 80. a5 {[%emt 0:01:46]} Nd4 {[%emt 0:00:05]} 81. Rb4 {[%emt 0:00:22]} Nxb3 {[%emt 0:01:04]} 82. a6 {[%emt 0:00:30]} Nc5 {[%emt 0:00:00]} 0-1

[Event "25th Troya Open 2017"]
[Site "Canakkale"]
[Date "2017.08.09"]
[Round "5.8"]
[White "Sahin, Handenur"]
[Black "Tarlabasi, Emirhan"]
[Result "1/2-1/2"]
[ECO "C09"]
[WhiteElo "1910"]
[BlackElo "2036"]
[Annotator "NA"]
[PlyCount "38"]
[EventCountry "TUR"]
[SourceTitle "playchess.com"]
[Source "ChessBase"]
[SourceQuality "1"]
[TimeControl "5400+30"]

1. e4 {[%emt 0:00:30]} e6 {[%emt 0:01:00]} 2. d4 {[%emt 0:00:30]} d5 {[%emt 0:00:30]} 3. Nd2 {[%emt 0:00:30]} c5 {[%emt 0:00:30]} 4. exd5 {[%emt 0:00:30]} exd5 {[%emt 0:00:30]} 5. Ngf3 {[%emt 0:00:30]} Nc6 {[%emt 0:00:30]} 6. Bb5 {[%emt 0:00:30]} Qe7+ {[%emt 0:00:00]} 7. Qe2 {[%emt 0:00:30] C09: French Tarrasch: 3...c5 4 exd5 exd5 5 Ngf3 Nc6} Qxe2+ {[%emt 0:00:00]} 8. Kxe2 {[%emt 0:01:30]} a6 {[%emt 0:01:30]} 9. Bxc6+ {[%emt 0:01:30]} bxc6 {[%emt 0:00:00]} 10. dxc5 {[%emt 0:03:30]} Bxc5 {[%emt 0:00:00]} 11. Nb3 {[%emt 0:00:30]} Bd6 {[%emt 0:01:30]} 12. Be3 {[%emt 0:02:30]} Nf6 $146 {[%emt 0:09:30]} ({Predecessor:} 12... Ne7 13. Bc5 Kd7 14. Ng5 Bf4 15. Nxf7 {½-½ (37) Navara,D (2725)-Fridman,D (2596) Tallinn 2016}) 13. Bc5 {[%emt 0:11:30]} Bxc5 {[%emt 0:15:30]} (13... Ke7 $5) 14. Nxc5 {[%emt 0:00:00]} O-O {[%emt 0:02:30]} 15. Nd4 {[%emt 0:10:00]} Nd7 {[%emt 0:01:30]} 16. Nxd7 {[%emt 0:07:30]} Bxd7 {[%emt 0:00:30]} 17. b4 {[%emt 0:05:30]} a5 {[%emt 0:06:30]} 18. a3 {[%emt 0:01:30]} a4 {[%emt 0:00:30]} (18... c5 $5 19. bxc5 Rac8 $11) 19. Kd2 {[%emt 0:03:30]} Rfc8 $14 {[%emt 0:57:30]} 1/2-1/2

[Event "25th Troya Open 2017"]
[Site "Canakkale"]
[Date "2017.08.09"]
[Round "5.9"]
[White "Vursan, Emre Can"]
[Black "Demirtas, Hafize"]
[Result "1-0"]
[ECO "C41"]
[WhiteElo "1696"]
[BlackElo "1708"]
[Annotator "NA RC"]
[PlyCount "124"]
[EventCountry "TUR"]
[SourceTitle "playchess.com"]
[Source "ChessBase"]
[SourceQuality "1"]
[TimeControl "5400+30"]

1. e4 {[%emt 0:00:30]} d6 {[%emt 0:01:00]} 2. d4 {[%emt 0:00:30]} Nf6 {[%emt 0:00:30]} 3. Nc3 {[%emt 0:00:30]} Nbd7 {[%emt 0:00:30]} 4. Nf3 {[%emt 0:00:30]} e5 {[%emt 0:00:30]} 5. g4 {[%emt 0:00:00]} Nxg4 {[%emt 0:04:30]} 6. Rg1 {[%emt 0:00:00]} exd4 {[%emt 0:03:30]} 7. Qxd4 {[%emt 0:00:00]} Nde5 {[%emt 0:02:30]} 8. Nxe5 {[%emt 0:02:00]} Nxe5 {[%emt 0:01:30]} 9. Be2 {[%emt 0:00:30]} h6 {[%emt 0:08:30]} 10. Be3 {[%emt 0:07:30]} Be6 {[%emt 0:10:30]} 11. O-O-O {[%emt 0:03:30]} a6 {[%emt 0:08:30]} 12. f4 {[%emt 0:05:30]} Nc6 {[%emt 0:01:30]} 13. Qd2 {[%emt 0:00:30]} Qh4 {[%emt 0:06:30]} 14. f5 {[%emt 0:01:30]} Bd7 {[%emt 0:00:30]} 15. Nd5 {[%emt 0:03:30]} O-O-O {[%emt 0:03:30]} 16. Rg4 {[%emt 0:08:30]} Qxh2 {[%emt 0:06:30]} 17. Nf4 {[%emt 0:04:30]} Ne5 {[%emt 0:05:30]} 18. Bg1 {[%emt 0:03:30]} Qh1 {[%emt 0:01:30]} 19. Qe3 {[%emt 0:14:30]} Nxg4 {[%emt 0:03:30]} 20. Qa7 {[%emt 0:00:00]} Bc6 {[%emt 0:02:30]} 21. Bxg4 {[%emt 0:00:00]} Qh4 {[%emt 0:12:45]} 22. Ne6 {[%emt 0:05:30]} fxe6 {[%emt 0:02:47]} 23. fxe6 {[%emt 0:00:30]} b5 {[%emt 0:01:13]} 24. e7+ {[%emt 0:09:30]} Qxg4 {[%emt 0:00:42]} 25. Qxa6+ {[%emt 0:00:30]} Bb7 {[%emt 0:03:11]} 26. exd8=Q+ {[%emt 0:00:30]} Kxd8 {[%emt 0:00:10]} 27. Qxb7 {[%emt 0:00:00]} Be7 {[%emt 0:00:26]} 28. Qb8+ {[%emt 0:01:00]} Qc8 {[%emt 0:00:11]} 29. Qxb5 {[%emt 0:00:30]} Bg5+ {[%emt 0:01:02]} 30. Kb1 {[%emt 0:00:30]} Qg4 {[%emt 0:00:54]} 31. Rf1 {[%emt 0:00:30]} Re8 {[%emt 0:01:04]} 32. e5 {[%emt 0:01:30]} dxe5 {[%emt 0:03:58]} 33. a4 {[%emt 0:04:30]} Bf6 {[%emt 0:02:19]} 34. a5 {[%emt 0:04:30]} Ke7 {[%emt 0:01:28]} 35. Bc5+ {[%emt 0:00:30]} Kf7 {[%emt 0:00:12]} 36. Qb3+ {[%emt 0:00:30]} Qe6 {[%emt 0:00:11]} 37. Qb7 {[%emt 0:00:34]} Qc8 {[%emt 0:00:33]} 38. Qc6 {[%emt 0:01:54]} Re6 {[%emt 0:00:50]} 39. Qd5 {[%emt 0:00:42]} Qa6 {[%emt 0:00:14]} 40. Qd7+ {[%emt 0:04:41]} Kg8 {[%emt 0:00:07]} 41. Rf3 {[%emt 0:02:58]} e4 {[%emt 0:00:09]} 42. Rb3 {[%emt 0:01:35]} Qc6 {[%emt 0:00:28]} 43. Rb8+ {[%emt 0:01:46]} Kh7 {[%emt 0:00:18]} 44. Qxc6 {[%emt 0:00:37]} Rxc6 {[%emt 0:00:05]} 45. b4 {[%emt 0:00:00]} Bc3 {[%emt 0:00:57]} 46. Re8 {[%emt 0:00:09]} g5 {[%emt 0:00:40]} 47. Rxe4 {[%emt 0:00:24]} h5 {[%emt 0:00:10]} 48. Be3 {[%emt 0:03:41]} Kg6 {[%emt 0:01:14]} 49. b5 {[%emt 0:00:11]} Rd6 {[%emt 0:00:51]} 50. a6 {[%emt 0:00:31]} Rd8 {[%emt 0:00:11]} 51. Rc4 {[%emt 0:00:26]} Be5 {[%emt 0:00:21]} 52. Rc5 {[%emt 0:01:16]} Bf4 {[%emt 0:01:09]} 53. Bxf4 {[%emt 0:01:42]} gxf4 {[%emt 0:00:30]} 54. Rxc7 {[%emt 0:00:02]} f3 {[%emt 0:00:40]} 55. Rc3 {[%emt 0:00:46]} f2 {[%emt 0:01:17]} 56. Rf3 {[%emt 0:00:03]} Rb8 {[%emt 0:00:18]} 57. c4 {[%emt 0:00:11]} Kg5 {[%emt 0:00:42]} 58. Rxf2 {[%emt 0:00:02]} Kg4 {[%emt 0:00:00]} 59. Rh2 {[%emt 0:00:18]} Kf5 {[%emt 0:00:30]} 60. Rxh5+ {[%emt 0:00:10]} Ke6 {[%emt 0:00:00]} 61. a7 {[%emt 0:00:02]} Ra8 {[%emt 0:00:00]} 62. b6 {[%emt 0:00:04]} Kd6 {[%emt 0:00:00]} 1-0

[Event "25th Troya Open 2017"]
[Site "Canakkale"]
[Date "2017.08.09"]
[Round "5.10"]
[White "Kara, Gulce Nehir"]
[Black "Pektas, Gokdeniz"]
[Result "1/2-1/2"]
[ECO "B33"]
[WhiteElo "1659"]
[BlackElo "1625"]
[Annotator "NA RC"]
[PlyCount "80"]
[EventCountry "TUR"]
[SourceTitle "playchess.com"]
[Source "ChessBase"]
[SourceQuality "1"]
[TimeControl "5400+30"]

1. e4 {[%emt 0:00:30]} c5 {[%emt 0:01:00]} 2. Nf3 {[%emt 0:00:30]} Nc6 {[%emt 0:00:30]} 3. d4 {[%emt 0:00:30]} cxd4 {[%emt 0:00:30]} 4. Nxd4 {[%emt 0:00:30]} Nf6 {[%emt 0:00:30]} 5. Nc3 {[%emt 0:00:30]} e5 {[%emt 0:00:30]} 6. Ndb5 {[%emt 0:00:30]} d6 {[%emt 0:00:30]} 7. Bd3 {[%emt 0:00:30]} a6 {[%emt 0:00:30]} 8. Na3 {[%emt 0:00:00]} d5 {[%emt 0:00:00]} 9. exd5 {[%emt 0:09:00]} Nxd5 {[%emt 0:00:00]} 10. Nxd5 {[%emt 0:01:30]} Qxd5 {[%emt 0:00:00]} 11. O-O {[%emt 0:00:30]} Bxa3 {[%emt 0:11:00]} 12. bxa3 {[%emt 0:00:00]} Be6 {[%emt 0:07:30]} 13. c4 {[%emt 0:03:00]} Qd4 {[%emt 0:00:30]} 14. Be3 {[%emt 0:01:30]} Qc3 {[%emt 0:00:30]} 15. Qb3 {[%emt 0:03:30]} Qxb3 {[%emt 0:01:30]} 16. axb3 {[%emt 0:02:30]} O-O-O {[%emt 0:00:00]} 17. Bc2 {[%emt 0:07:30]} Nd4 {[%emt 0:02:00]} 18. Bxd4 {[%emt 0:03:30]} Rxd4 {[%emt 0:00:00]} 19. Rae1 {[%emt 0:04:30]} Rd2 {[%emt 0:02:00]} 20. Bb1 {[%emt 0:07:30]} Rb2 {[%emt 0:01:30]} 21. b4 {[%emt 0:01:30]} Bxc4 {[%emt 0:03:30]} 22. Rc1 {[%emt 0:00:30]} b5 {[%emt 0:00:00]} 23. Bd3 {[%emt 0:00:30]} Rd8 {[%emt 0:04:00]} 24. Bxc4 {[%emt 0:00:30]} bxc4 {[%emt 0:00:00]} 25. Rxc4+ {[%emt 0:00:00]} Kb8 {[%emt 0:00:00]} 26. Rh4 {[%emt 0:01:00]} h6 {[%emt 0:00:30]} 27. Rg4 {[%emt 0:00:30]} g5 {[%emt 0:00:30]} 28. Re4 {[%emt 0:00:30]} f6 {[%emt 0:00:00]} 29. Rc4 {[%emt 0:00:30]} Rc8 {[%emt 0:02:00]} 30. Rxc8+ {[%emt 0:02:30]} Kxc8 {[%emt 0:00:00]} 31. Rc1+ {[%emt 0:00:30]} Kd7 {[%emt 0:01:00]} 32. g3 {[%emt 0:00:30]} Rb3 {[%emt 0:00:30]} 33. Ra1 {[%emt 0:00:30]} Kc6 {[%emt 0:00:30]} 34. Rc1+ {[%emt 0:01:30]} Kb6 {[%emt 0:00:30]} 35. Rd1 {[%emt 0:00:30]} Rc3 {[%emt 0:01:30]} 36. Rd6+ {[%emt 0:02:30]} Rc6 {[%emt 0:00:30]} 37. Rd5 {[%emt 0:05:30]} Kc7 {[%emt 0:10:30]} 38. Kg2 {[%emt 0:00:30]} Rc3 {[%emt 0:00:30]} 39. Ra5 {[%emt 0:00:30]} Kb6 {[%emt 0:00:00]} 40. Rd5 {[%emt 0:06:30]} Rxa3 {[%emt 0:01:00]} 1/2-1/2

[Event "25th Troya Open 2017"]
[Site "Canakkale"]
[Date "2017.08.09"]
[Round "5.11"]
[White "Kaya, Onur"]
[Black "Konusoglu, Kemal Safa"]
[Result "1/2-1/2"]
[ECO "B25"]
[WhiteElo "1633"]
[BlackElo "1555"]
[Annotator "NA RC"]
[PlyCount "47"]
[EventCountry "TUR"]
[SourceTitle "playchess.com"]
[Source "ChessBase"]
[SourceQuality "1"]
[TimeControl "5400+30"]

1. e4 {[%emt 0:00:30]} c5 {[%emt 0:01:00]} 2. Nc3 {[%emt 0:00:30]} Nc6 {[%emt 0:00:30]} 3. g3 {[%emt 0:00:30]} g6 {[%emt 0:00:30]} 4. Bg2 {[%emt 0:00:30]} Bg7 {[%emt 0:00:30]} 5. d3 {[%emt 0:00:30]} e6 {[%emt 0:00:30]} 6. f4 {[%emt 0:00:30]} Nge7 {[%emt 0:00:30]} 7. Nf3 {[%emt 0:00:30]} d6 {[%emt 0:00:30]} 8. O-O {[%emt 0:00:00]} O-O {[%emt 0:00:30]} 9. Kh1 {[%emt 0:10:00]} b6 {[%emt 0:00:30]} 10. Ne2 {[%emt 0:03:30]} Bb7 {[%emt 0:00:30]} 11. c3 {[%emt 0:00:30]} Rc8 {[%emt 0:01:30]} 12. g4 {[%emt 0:00:00]} f5 {[%emt 0:12:30]} 13. gxf5 {[%emt 0:01:00]} gxf5 {[%emt 0:01:30]} 14. Ng3 {[%emt 0:04:30]} Qd7 {[%emt 0:05:30]} 15. Nh5 {[%emt 0:08:30]} Ng6 {[%emt 0:20:30]} 16. Nxg7 {[%emt 0:01:30]} Kxg7 {[%emt 0:01:30]} 17. Ng5 {[%emt 0:06:30]} h6 {[%emt 0:07:30]} 18. exf5 {[%emt 0:00:30]} exf5 {[%emt 0:06:30]} 19. Nf3 {[%emt 0:26:30]} Rfe8 {[%emt 0:00:30]} 20. Bd2 {[%emt 0:00:30]} Ba6 {[%emt 0:00:30]} 21. c4 {[%emt 0:00:30]} Kh7 {[%emt 0:01:30]} 22. h4 {[%emt 0:09:30]} Nd4 {[%emt 0:09:30]} 23. h5 {[%emt 0:04:30]} Ne7 {[%emt 0:00:30]} 24. Ng5+ {[%emt 0:19:51]} 1/2-1/2

[Event "25th Troya Open 2017"]
[Site "Canakkale"]
[Date "2017.08.09"]
[Round "5.12"]
[White "Erdal, Kerem"]
[Black "Zaimov, Berk"]
[Result "1/2-1/2"]
[ECO "B13"]
[WhiteElo "1579"]
[BlackElo "1544"]
[Annotator "NA RC"]
[PlyCount "69"]
[EventCountry "TUR"]
[SourceTitle "playchess.com"]
[Source "ChessBase"]
[SourceQuality "1"]
[TimeControl "5400+30"]

1. e4 {[%emt 0:00:30]} c6 {[%emt 0:01:00]} 2. d4 {[%emt 0:00:30]} d5 {[%emt 0:00:30]} 3. exd5 {[%emt 0:00:30]} cxd5 {[%emt 0:00:30]} 4. Nf3 {[%emt 0:00:30]} Nf6 {[%emt 0:00:30]} 5. c4 {[%emt 0:00:30]} Bf5 {[%emt 0:00:30]} 6. Nc3 {[%emt 0:00:30]} e6 {[%emt 0:00:30]} 7. Bg5 {[%emt 0:00:00]} Be7 {[%emt 0:02:30]} 8. Bxf6 {[%emt 0:03:00]} Bxf6 {[%emt 0:00:30]} 9. cxd5 {[%emt 0:00:30]} exd5 {[%emt 0:00:30]} 10. Qb3 {[%emt 0:03:30]} Qe7+ {[%emt 0:00:30]} 11. Be2 {[%emt 0:01:30]} Be6 {[%emt 0:05:30]} 12. Nxd5 {[%emt 0:12:30]} Bxd5 {[%emt 0:00:00]} 13. Qxd5 {[%emt 0:00:30]} Qb4+ {[%emt 0:00:00]} 14. Nd2 {[%emt 0:00:30]} O-O {[%emt 0:00:30]} 15. Qb5 {[%emt 0:15:30]} Qxb5 {[%emt 0:14:30]} 16. Bxb5 {[%emt 0:00:30]} Bxd4 {[%emt 0:00:30]} 17. O-O {[%emt 0:00:30]} Bxb2 {[%emt 0:02:30]} 18. Rab1 {[%emt 0:01:30]} Bd4 {[%emt 0:00:30]} 19. Bc4 {[%emt 0:00:30]} Bb6 {[%emt 0:00:30]} 20. Ne4 {[%emt 0:01:30]} Nc6 {[%emt 0:02:30]} 21. Nd6 {[%emt 0:01:30]} Na5 {[%emt 0:00:30]} 22. Be2 {[%emt 0:11:30]} g6 {[%emt 0:02:30]} 23. Bf3 {[%emt 0:02:30]} Rab8 {[%emt 0:01:30]} 24. Ne4 {[%emt 0:09:30]} Rfd8 {[%emt 0:12:30]} 25. Nf6+ {[%emt 0:00:30]} Kg7 {[%emt 0:00:30]} 26. Nd5 {[%emt 0:00:30]} Bc5 {[%emt 0:01:30]} 27. Rfc1 {[%emt 0:00:30]} b6 {[%emt 0:00:30]} 28. g3 {[%emt 0:06:30]} Rbc8 {[%emt 0:00:30]} 29. Kg2 {[%emt 0:00:30]} Nc6 {[%emt 0:02:30]} 30. Nc3 {[%emt 0:10:05]} Ne5 {[%emt 0:02:30]} 31. Ne4 {[%emt 0:04:26]} Nxf3 {[%emt 0:02:30]} 32. Kxf3 {[%emt 0:00:48]} Ba3 {[%emt 0:01:30]} 33. Rxc8 {[%emt 0:01:27]} Rf8 {[%emt 0:00:30]} 34. Rb3 {[%emt 0:00:14]} Be7 {[%emt 0:00:30]} 35. Rd3 {[%emt 0:06:06]} 1/2-1/2